bitfinex-derivatives/quotes_SOLF0:USTF0_20240908
["timestamp","ask_amount","ask_price","bid_price","bid_amount"]
[1725784763045,2.6755,129.7,129.64,8.32]
[1725784763455,2.6996,129.67,129.64,11.0201]
[1725784763756,2.6755,129.7,129.66,8.32]
[1725784766358,2.6995,129.67,129.66,8.32]
[1725784767964,2.6995,129.67,129.64,14.89333487]
[1725784768758,2.6995,129.67,129.64,11.02]
[1725784769462,2.6995,129.67,129.64,14.97010715]
[1725784770458,2.6995,129.67,129.64,11.02]
[1725784770959,2.6995,129.67,129.64,14.95003887]
[1725784772268,2.6997,129.66,129.63,2.7003]
[1725784772465,2.6997,129.66,129.64,8.32]
[1725784774365,2.6996,129.67,129.64,11.0201]
[1725784774664,2.6996,129.67,129.65,8.32]
[1725784775675,2.6994,129.68,129.65,11.0198]
[1725784778466,2.6994,129.68,129.66,2.6997]
[1725784778670,2.6992,129.69,129.66,11.0197]
[1725784779465,8.32,129.67,129.61,8.32]
[1725784779767,2.7001,129.65,129.61,14.91823573]
[1725784780981,2.7002,129.64,129.61,14.91823573]
[1725784781183,8.32,129.67,129.62,2.7005]
[1725784781481,8.32,129.67,129.61,12.21763573]
[1725784781686,2.7001,129.65,129.61,14.91833573]
[1725784784885,2.7002,129.64,129.61,14.91833573]
[1725784785082,12.23838284,129.67,129.61,14.91833573]
[1725784785276,8.32,129.66,129.6,11.0209]
[1725784785487,2.7006,129.62,129.6,8.32]
[1725784794191,2.7008,129.61,129.6,8.32]
[1725784796294,2.7006,129.62,129.6,8.32]
[1725784797090,8.32,129.62,129.56,11.0217]
[1725784797292,8.32,129.61,129.56,11.0217]
[1725784798088,2.7013,129.59,129.56,8.32]
[1725784799292,2.7013,129.59,129.56,11.0217]
[1725784800695,2.701,129.6,129.57,2.7015]
[1725784804395,2.7008,129.61,129.57,2.7015]
[1725784804598,2.6339,129.65,129.59,8.32]
[1725784804802,2.6339,129.65,129.6,12.24020345]
[1725784805099,5.334,129.65,129.62,8.32]
[1725784805285,2.6339,129.65,129.62,8.32]
[1725784805684,2.7003,129.64,129.62,8.32]
[1725784808398,2.6339,129.65,129.62,11.0205]
[1725784808399,5.334,129.65,129.62,11.0205]
[1725784814097,2.7002,129.64,129.61,2.7007]
[1725784814607,2.7002,129.64,129.6,14.94138945]
[1725784816416,2.7002,129.64,129.61,2.7008]
[1725784818314,5.3339,129.65,129.61,2.7008]
[1725784818910,2.7002,129.64,129.61,2.7008]
[1725784820307,2.7002,129.64,129.6,14.94148945]
[1725784820703,8.32,129.64,129.58,8.32]
[1725784821020,8.32,129.64,129.58,12.11869184]
[1725784822410,2.7006,129.62,129.59,2.7011]
[1725784823311,8.32,129.62,129.57,2.7015]
[1725784824014,8.32,129.6,129.56,2.7017]
[1725784824714,2.7013,129.59,129.56,2.7017]
[1725784826117,2.7014,129.58,129.55,11.0219]
[1725784832814,2.6339,129.65,129.52,166.03774369]
[1725784832815,2.6339,129.65,129.57,8.32]
[1725784833016,8.32,129.63,129.57,8.32]
[1725784833413,2.7009,129.61,129.58,8.32]
[1725784834823,2.701,129.6,129.57,11.0215]
[1725784835818,2.7009,129.61,129.58,2.7014]
[1725784836020,2.7009,129.61,129.58,6.56833497]
[1725784837319,2.7009,129.61,129.58,14.88833497]
[1725784841823,2.7006,129.62,129.58,12.18693497]
[1725784842025,10.9539,129.65,129.59,8.32]
[1725784842726,10.9539,129.65,129.6,6.49189417]
[1725784842727,2.7005,129.63,129.6,6.49189417]
[1725784843527,2.7005,129.63,129.61,8.32]
[1725784843825,2.6339,129.65,129.62,8.32]
[1725784844630,2.6339,129.65,129.62,12.21480944]
[1725784845427,5.3339,129.65,129.62,14.91520944]
[1725784849127,442.05700246,129.77,129.52,179.18374369]
[1725784849128,1.0,129.72,129.64,8.32]
[1725784849327,12.2936,129.77,129.7,8.32]
[1725784849522,16.1964713,129.77,129.7,12.14261453]
[1725784849722,7.8764713,129.77,129.71,8.32]
[1725784849925,16.1964713,129.77,129.71,8.32]
[1725784850134,10.5740713,129.77,129.72,2.6985]
[1725784850331,18.8940713,129.77,129.72,2.6985]
[1725784850925,2.6977,129.76,129.72,2.6985]
[1725784851235,8.32,129.76,129.69,8.32]
[1725784851531,2.6982,129.74,129.69,8.32]
[1725784851729,2.6982,129.74,129.7,2.6988]
[1725784852323,2.6982,129.74,129.7,6.55402664]
[1725784852524,2.6979,129.75,129.71,2.6987]
[1725784852733,2.6979,129.75,129.71,11.0187]
[1725784854639,2.6979,129.75,129.72,8.32]
[1725784854840,6.6711,129.77,129.73,2.6982]
[1725784855030,6.6711,129.77,129.72,8.32]
[1725784855031,3.9736,129.77,129.72,8.32]
[1725784855539,3.9736,129.77,129.73,8.32]
[1725784855741,2.6083,129.77,129.74,8.32]
[1725784856435,2.6083,129.77,129.74,11.018]
[1725784856641,3.80163899,129.78,129.74,11.018]
[1725784856843,2.7084,129.79,129.73,8.32]
[1725784857032,2.6977,129.76,129.73,8.32]
[1725784859553,2.6979,129.75,129.73,8.32]
[1725784859752,8.32,129.78,129.73,8.32]
[1725784860456,2.6978,129.76,129.72,2.6984]
[1725784860757,8.32,129.76,129.69,3.83844288]
[1725784861057,2.6982,129.74,129.7,8.32]
[1725784861446,29.8547285,129.79,129.72,8.32]
[1725784861654,2.6979,129.75,129.72,8.32]
[1725784862053,2.6979,129.75,129.72,11.0185]
[1725784862253,2.6977,129.76,129.72,11.0185]
[1725784862457,8.32,129.78,129.69,3.80511374]
[1725784862656,6.6347285,129.79,129.74,8.32]
[1725784863248,2.6977,129.76,129.74,8.32]
[1725784863958,2.6977,129.76,129.73,8.32]
[1725784864456,2.6979,129.75,129.72,2.6983]
[1725784864758,14.9547285,129.79,129.73,8.32]
[1725784865363,2.6977,129.76,129.73,8.32]
[1725784866353,2.6977,129.76,129.73,11.0182]
[1725784866557,2.6977,129.76,129.74,8.32]
[1725784866958,6.6347285,129.79,129.74,8.32]
[1725784866959,2.6975,129.77,129.74,8.32]
[1725784869751,2.6975,129.77,129.75,8.32]
[1725784870555,2.6975,129.77,129.74,2.6979]
[1725784870754,2.6975,129.77,129.75,8.32]
[1725784873760,2.7084,129.79,129.76,8.32]
[1725784874666,5.4056,129.79,129.76,8.32]
[1725784874858,1.3357,129.81,129.77,8.32]
[1725784875253,1.3357,129.81,129.78,8.32]
[1725784876263,2.6968,129.81,129.78,11.0172]
[1725784876663,2.6968,129.8,129.76,2.6975]
[1725784876966,2.6968,129.8,129.78,8.32]
[1725784877467,2.6968,129.81,129.78,8.32]
[1725784878968,2.6968,129.81,129.79,8.32]
[1725784884873,2.6963,129.83,129.8,8.32]
[1725784886868,2.6964,129.82,129.8,8.32]
[1725784888467,2.6966,129.81,129.8,8.32]
[1725784889467,2.6966,129.81,129.78,2.6972]
[1725784889669,2.6966,129.81,129.8,8.32]
[1725784892975,1.3604,129.85,129.8,8.32]
[1725784893572,2.6966,129.82,129.8,8.32]
[1725784894879,2.6961,129.84,129.81,8.32]
[1725784895074,1.3604,129.85,129.83,8.32]
[1725784896283,2.696,129.84,129.83,8.32]
[1725784898085,2.6958,129.85,129.83,8.32]
[1725784898384,2.6958,129.85,129.84,8.32]
[1725784898979,2.6956,129.86,129.84,8.32]
[1725784902690,2.7085,129.88,129.84,8.32]
[1725784903677,2.6954,129.87,129.84,8.32]
[1725784904887,2.6956,129.86,129.84,8.32]
[1725784905392,2.7085,129.88,129.79,151.07529158]
[1725784905393,11.0285,129.88,129.79,151.07529158]
[1725784905588,11.0285,129.88,129.82,8.32]
[1725784905795,11.0285,129.88,129.8,2.6966]
[1725784905992,11.0285,129.88,129.82,8.32]
[1725784906189,8.32,129.87,129.82,8.32]
[1725784907382,31.46,129.87,129.81,8.32]
[1725784908690,2.6964,129.83,129.81,8.32]
[1725784909787,31.46,129.86,129.78,3.91881765]
[1725784909997,31.46,129.86,129.8,8.32]
[1725784910297,31.46,129.86,129.78,3.87220175]
[1725784910496,2.6964,129.83,129.8,8.32]
[1725784912289,2.7085,129.88,129.82,8.32]
[1725784912488,0.28325464,129.87,129.83,8.32]
[1725784912893,2.696,129.85,129.83,8.32]
[1725784913797,31.46,129.85,129.79,8.32]
[1725784914704,0.28327914,129.84,129.79,8.32]
[1725784915601,2.6966,129.82,129.79,8.32]
[1725784916099,2.6966,129.82,129.81,8.32]
[1725784916706,0.28341421,129.82,129.54,3.59743306]
[1725784917001,23.42341421,129.81,129.55,1.39]
[1725784917202,2.6978,129.75,129.74,8.32]
[1725784917695,23.14,129.81,129.7,3.85854179]
[1725784917696,3.82810193,129.79,129.7,3.85854179]
[1725784917901,31.46,129.79,129.62,2.6746]
[1725784918099,35.22375437,129.79,129.72,8.32]
[1725784918405,2.6983,129.74,129.72,8.32]
[1725784919004,2.6979,129.75,129.7,8.32]
[1725784919505,8.32,129.77,129.7,8.32]
[1725784920804,9.63521966,129.74,129.7,8.32]
[1725784921106,18.72687288,129.73,129.7,8.32]
[1725784921409,9.63521966,129.74,129.7,8.32]
[1725784921410,2.6981,129.74,129.7,8.32]
[1725784921599,18.72667877,129.72,129.7,8.32]
[1725784921804,12.33322069,129.74,129.7,8.32]
[1725784921805,7.46102264,129.73,129.7,8.32]
[1725784922115,18.72676196,129.72,129.7,8.32]
[1725784922310,7.46102264,129.71,129.7,8.32]
[1725784922508,2.6981,129.74,129.7,8.32]
[1725784922802,7.46102077,129.71,129.69,1.3347]
[1725784923004,18.72400392,129.7,129.69,1.3347]
[1725784924910,13.96215213,129.7,129.66,8.32]
[1725784925116,21.42153774,129.7,129.66,8.32]
[1725784925297,7.45938561,129.69,129.66,12.23288161]
[1725784925504,7.45938561,129.68,129.66,8.32]
[1725784925700,7.45938561,129.67,129.66,8.32]
[1725784925907,7.45938561,129.67,129.64,12.14903524]
[1725784926102,15.78102077,129.71,129.63,9.6994]
[1725784926103,7.4570058,129.66,129.63,9.6994]
[1725784926304,7.4570058,129.65,129.63,1.3794]
[1725784926505,18.71205378,129.64,129.6,8.32]
[1725784926712,7.45507271,129.63,129.6,8.32]
[1725784927022,8.32,129.65,129.6,8.32]
[1725784927208,8.32,129.65,129.6,12.14209369]
[1725784927209,7.45459643,129.64,129.6,12.14209369]
[1725784927417,8.32,129.65,129.6,14.84289369]
[1725784927418,7.45459643,129.63,129.6,14.84289369]
[1725784927610,11.0201,129.65,129.6,14.84289369]
[1725784927915,2.7001,129.65,129.6,6.52289369]
[1725784928217,10.15451793,129.64,129.6,6.52289369]
[1725784928514,2.7001,129.64,129.6,6.52289369]
[1725784930928,2.7009,129.61,129.58,4.0903]
[1725784931221,2.7009,129.61,129.58,2.6929]
[1725784932124,24.55344576,129.64,129.58,1.3167]
[1725784932314,18.71635196,129.63,129.58,1.3167]
[1725784932516,18.71635196,129.63,129.49,1.3397]
[1725784932517,20.74,129.62,129.55,3.84164049]
[1725784932724,7.45672274,129.61,129.53,20.74]
[1725784933024,2.7013,129.59,129.54,2.7022]
[1725784933227,2.7013,129.59,129.55,3.7860708]
[1725784933619,2.7013,129.59,129.54,2.7022]
[1725784933927,43.88,129.67,129.5,1.3528]
[1725784933928,6.3937,129.81,129.55,20.74]
[1725784934225,20.74,129.77,129.56,1.4176071]
[1725784934423,20.74,129.75,129.65,20.74]
[1725784934728,20.74,129.75,129.65,24.65727701]
[1725784934933,20.74,129.73,129.65,3.91727701]
[1725784935224,23.4384,129.73,129.66,2.6996]
[1725784939726,23.4381,129.74,129.65,20.74]
[1725784940228,23.4381,129.74,129.67,20.74]
[1725784940732,23.4381,129.74,129.68,2.6992]
[1725784942030,2.6979,129.75,129.69,2.6989]
[1725784942929,23.3388,129.76,129.7,2.6989]
[1725784943233,23.3388,129.76,129.67,20.74]
[1725784944430,2.6979,129.75,129.7,2.6987]
[1725784947438,2.6981,129.74,129.7,2.6987]
[1725784948532,2.5988,129.76,129.68,20.74]
[1725784949232,2.5988,129.76,129.7,20.74]
[1725784949432,1.3304,129.76,129.7,20.74]
[1725784950128,1.06209421,129.76,129.7,20.74]
[1725784950332,1.06209421,129.76,129.68,20.74]
[1725784950534,2.698,129.75,129.7,2.6987]
[1725784950736,2.698,129.75,129.68,20.74]
[1725784951238,2.698,129.75,129.71,2.6987]
[1725784953733,2.698,129.75,129.68,20.74]
[1725784955042,2.698,129.75,129.71,2.6986]
[1725784955936,1.06209421,129.76,129.72,2.6985]
[1725784955937,3.75979421,129.76,129.72,2.6985]
[1725784956237,1.06209421,129.76,129.7,20.74]
[1725784957840,1.06209421,129.76,129.73,2.6981]
[1725784960548,3.75979421,129.76,129.72,2.6983]
[1725784962349,3.75979421,129.76,129.71,2.6985]
[1725784962350,2.6979,129.75,129.71,2.6985]
[1725784968453,3.75979421,129.76,129.72,2.6983]
[1725784970356,2.6979,129.75,129.72,2.6983]
[1725784970652,2.6979,129.75,129.71,2.6986]
[1725784971852,1.06209421,129.76,129.7,20.74]
[1725784971853,3.75979421,129.76,129.72,2.6984]
[1725784972158,3.75979421,129.76,129.72,10.9884]
[1725784980263,3.75979421,129.76,129.73,8.29]
[1725784981061,3.75979421,129.76,129.73,10.9882]
[1725784981762,1.06209421,129.76,129.73,10.9882]
[1725784982960,1.06209421,129.76,129.69,2.699]
[1725784983162,1.3095,129.75,129.69,8.29]
[1725784983665,1.3095,129.75,129.63,0.2663]
[1725784983666,8.29,129.71,129.63,0.2663]
[1725784983961,12.23601739,129.7,129.64,8.29]
[1725784984166,9.6473,129.7,129.64,8.29]
[1725784984365,2.6994,129.68,129.64,8.29]
[1725784985066,2.6994,129.68,129.64,10.9901]
[1725784985863,2.6995,129.67,129.59,0.2663]
[1725784986166,2.6995,129.67,129.62,20.73]
[1725784986565,1.3166,129.68,129.63,2.7002]
[1725784986768,1.3166,129.68,129.62,20.73]
[1725784987061,2.6996,129.67,129.62,23.4304]
[1725784987267,1.3166,129.68,129.62,20.73]
[1725784987860,4.016,129.68,129.63,2.7002]
[1725784988363,4.016,129.68,129.64,23.4301]
[1725784989860,44.87,129.74,129.65,20.73]
[1725784990070,2.6886,129.73,129.65,20.73]
[1725784990371,2.6991,129.69,129.65,23.4298]
[1725784992659,2.6991,129.69,129.65,27.33493401]
[1725784997570,2.6991,129.69,129.65,2.6998]
[1725784999366,2.6993,129.68,129.64,2.7]
[1725785001874,2.6993,129.68,129.65,2.6999]
[1725785004268,2.6992,129.69,129.65,2.6999]
[1725785005781,2.6992,129.69,129.66,2.6997]
[1725785006870,2.6992,129.69,129.65,2.6999]
[1725785008369,2.6993,129.68,129.65,2.6999]
[1725785009068,2.6992,129.69,129.65,6.61013739]
[1725785010269,2.6992,129.69,129.65,2.6999]
[1725785011470,12.17932063,129.7,129.65,2.6999]
[1725785011471,2.6993,129.68,129.65,2.6999]
[1725785014378,2.6996,129.67,129.64,2.7]
[1725785014576,2.6996,129.67,129.62,8.29]
[1725785014781,8.29,129.67,129.62,8.29]
[1725785014979,8.29,129.67,129.63,2.7003]
[1725785016380,2.6998,129.66,129.63,2.7003]
[1725785018086,2.6998,129.66,129.63,10.9903]
[1725785020280,8.29,129.68,129.59,0.2663]
[1725785020488,8.29,129.66,129.61,8.29]
[1725785020681,2.6359,129.67,129.61,8.29]
[1725785021890,2.6998,129.66,129.61,8.29]
[1725785023287,2.6998,129.66,129.62,2.7004]
[1725785023591,5.3355,129.67,129.63,8.29]
[1725785023798,5.3355,129.67,129.64,8.29]
[1725785024100,3.9751,129.67,129.64,8.29]
[1725785025296,3.9751,129.67,129.64,10.9901]
[1725785031807,2.6994,129.68,129.65,2.6998]
[1725785032010,2.6994,129.68,129.65,10.9898]
[1725785033302,1.2644,129.71,129.66,8.29]
[1725785033903,7.85427795,129.71,129.68,2.6993]
[1725785034099,7.85427795,129.71,129.68,10.9893]
[1725785038808,7.85427795,129.71,129.68,2.6993]
[1725785041419,2.6989,129.7,129.67,2.6994]
[1725785041713,8.29,129.69,129.64,8.29]
[1725785043412,2.6993,129.68,129.65,2.6998]
[1725785048824,2.6992,129.69,129.66,2.6997]
[1725785051915,2.699,129.7,129.67,2.6994]
[1725785056134,2.6992,129.69,129.66,2.6996]
[1725785056426,8.29,129.69,129.64,8.29]
[1725785057125,2.6993,129.68,129.65,2.6998]
[1725785062718,2.6992,129.69,129.66,2.6997]
[1725785062925,2.6992,129.69,129.66,10.9897]
[1725785064528,2.6992,129.69,129.66,2.6997]
[1725785065231,2.6994,129.68,129.65,10.9899]
[1725785066831,1.2984,129.72,129.67,8.29]
[1725785067032,1.2984,129.72,129.68,8.29]
[1725785067329,2.6989,129.71,129.67,10.9895]
[1725785069439,2.6989,129.7,129.67,8.29]
[1725785070436,2.6989,129.7,129.67,10.9895]
[1725785072036,3.78556941,129.72,129.68,10.9893]
[1725785072834,12.07556941,129.72,129.67,2.6994]
[1725785074335,2.699,129.7,129.67,2.6994]
[1725785076341,8.29,129.71,129.65,8.29]
[1725785076643,8.29,129.71,129.65,12.11778784]
[1725785078441,2.6992,129.69,129.66,2.6997]
[1725785083744,2.6992,129.69,129.65,10.9899]
[1725785085945,2.6993,129.68,129.65,10.9899]
[1725785087045,26.92556941,129.72,129.65,10.9899]
[1725785087253,2.6992,129.69,129.65,10.9899]
[1725785089342,2.699,129.7,129.65,8.29]
[1725785089548,12.07556941,129.72,129.65,8.29]
[1725785089756,2.6991,129.69,129.66,2.6996]
[1725785093253,2.6991,129.69,129.65,2.6999]
[1725785093453,2.6993,129.68,129.65,10.9899]
[1725785095754,2.6992,129.69,129.66,8.29]
[1725785096552,2.6992,129.69,129.66,10.9897]
[1725785098048,2.6993,129.68,129.65,10.9898]
[1725785100353,8.29,129.69,129.58,5.4024]
[1725785100557,10.9928,129.69,129.63,8.29]
[1725785100861,2.6997,129.67,129.63,14.76342726]
[1725785102351,2.6997,129.67,129.64,10.9901]
[1725785102748,2.6993,129.68,129.65,8.29]
[1725785103158,1.3889,129.69,129.65,8.29]
[1725785103551,4.0881,129.69,129.65,12.10864779]
[1725785104459,4.0881,129.69,129.65,8.29]
[1725785105057,2.6994,129.68,129.65,10.9899]
[1725785106456,4.0881,129.69,129.65,10.9899]
[1725785107354,2.6988,129.71,129.68,8.29]
[1725785107555,1.3348,129.72,129.69,8.29]
[1725785108065,4.0334,129.72,129.69,8.29]
[1725785110264,2.6986,129.72,129.69,10.9891]
[1725785115463,2.6987,129.71,129.69,10.9891]
[1725785122659,2.6984,129.73,129.7,2.6988]
[1725785122858,2.6984,129.73,129.7,8.29]
[1725785123059,1.3663,129.78,129.71,8.29]
[1725785123263,1.3663,129.78,129.73,8.29]
[1725785123264,2.6978,129.76,129.73,8.29]
[1725785124676,168.08916977,129.77,129.73,8.29]
[1725785125073,168.08916977,129.77,129.74,2.6979]
[1725785128972,165.39166977,129.77,129.73,2.6982]
[1725785129172,2.6976,129.76,129.72,12.19915928]
[1725785129372,8.29,129.74,129.69,3.85415859]
[1725785129677,8.29,129.74,129.62,0.2678]
[1725785129678,2.6986,129.72,129.68,8.29]
[1725785129879,2.6986,129.72,129.68,12.06822408]
[1725785130973,8.29,129.73,129.62,0.2678]
[1725785131169,8.29,129.71,129.62,0.2678]
[1725785131371,8.29,129.71,129.66,8.29]
[1725785131770,8.29,129.71,129.66,12.07169317]
[1725785132082,2.6991,129.7,129.66,14.77139317]
[1725785133970,2.6988,129.71,129.67,10.9895]
[1725785134770,2.6988,129.71,129.67,14.9072328]
[1725785136782,2.6989,129.7,129.67,14.9072328]
[1725785138583,3.80135134,129.72,129.68,2.6992]
[1725785138983,3.80135134,129.72,129.68,10.9892]
[1725785139281,2.6987,129.71,129.68,10.9892]
[1725785143284,2.6987,129.71,129.68,2.6992]
[1725785143480,2.6987,129.71,129.67,14.9071328]
[1725785146494,3.80135134,129.72,129.67,14.9071328]
[1725785146798,8.29,129.74,129.68,10.9893]
[1725785146992,12.2139,129.75,129.7,8.29]
[1725785147690,2.6984,129.73,129.7,8.29]
[1725785147998,12.2139,129.75,129.7,8.29]
[1725785148192,3.9239,129.75,129.71,10.9886]
[1725785148494,2.6638,129.75,129.71,10.9886]
[1725785148883,2.6982,129.74,129.71,14.93910296]
[1725785149091,2.6638,129.75,129.72,2.6985]
[1725785149398,1.3887,129.75,129.72,10.9885]
[1725785150095,4.0866,129.75,129.72,10.9885]
[1725785150792,168.08916977,129.77,129.73,2.6981]
[1725785150995,2.5419,129.78,129.74,8.29]
[1725785151197,1.2722,129.78,129.74,8.29]
[1725785151593,1.2722,129.78,129.75,2.6977]
[1725785152291,3.9695,129.78,129.75,2.6977]
[1725785157503,3.9599,129.79,129.75,2.6977]
[1725785158702,3.9599,129.79,129.76,2.6976]
[1725785159307,1.2628,129.79,129.77,8.29]
[1725785159802,1.2859,129.81,129.78,10.9871]
[1725785160202,1.2859,129.81,129.78,8.29]
[1725785160403,1.2859,129.81,129.79,2.697]
[1725785160705,3.9825,129.81,129.77,8.29]
[1725785161293,2.6969,129.8,129.77,10.9873]
[1725785162309,2.697,129.79,129.75,8.29]
[1725785162509,2.697,129.79,129.75,12.10635994]
[1725785163006,2.697,129.79,129.75,14.80405994]
[1725785163999,4.0726,129.8,129.76,8.29]
[1725785164203,4.0726,129.8,129.77,8.29]
[1725785164605,4.0726,129.8,129.78,8.29]
[1725785164917,1.3757,129.8,129.76,8.29]
[1725785165507,2.6971,129.79,129.76,8.29]
[1725785165706,1.3757,129.8,129.76,8.29]
[1725785165909,2.6974,129.78,129.76,8.29]
[1725785166214,8.29,129.79,129.74,8.29]
[1725785166504,9.6619,129.79,129.74,8.29]
[1725785166906,2.6976,129.77,129.74,14.87179744]
[1725785167310,2.6976,129.77,129.74,10.988]
[1725785167713,2.6977,129.76,129.74,8.29]
[1725785171611,9.6619,129.79,129.72,3.77686312]
[1725785171911,2.6981,129.74,129.72,8.29]
[1725785174216,2.6981,129.74,129.71,3.86658054]
[1725785174413,8.29,129.77,129.72,8.29]
[1725785175112,2.6981,129.74,129.72,8.29]
[1725785175619,2.6981,129.74,129.73,8.29]
[1725785179227,2.6983,129.73,129.7,2.6988]
[1725785179427,2.6983,129.73,129.71,12.22270898]
[1725785180130,2.6983,129.73,129.71,3.93270898]
[1725785180630,2.6983,129.73,129.71,12.22270898]
[1725785184026,2.6981,129.74,129.72,8.29]
[1725785184930,2.6979,129.75,129.72,8.29]
[1725785185832,2.6981,129.74,129.72,8.29]
[1725785186036,1.3666,129.77,129.73,8.29]
[1725785187026,2.6977,129.76,129.73,8.29]
[1725785187224,1.3666,129.77,129.73,8.29]
[1725785188236,2.6979,129.75,129.73,8.29]
[1725785190634,2.6979,129.75,129.72,8.29]
[1725785191836,1.3666,129.77,129.72,8.29]
[1725785193331,2.698,129.75,129.72,10.9884]
[1725785195440,2.698,129.75,129.72,8.29]
[1725785196028,2.698,129.75,129.72,10.9885]
[1725785197234,2.6977,129.76,129.74,8.29]
[1725785197436,1.3719,129.79,129.75,8.29]
[1725785197940,2.6975,129.77,129.75,8.29]
[1725785203348,2.6976,129.76,129.75,8.29]
[1725785206351,2.6975,129.77,129.75,8.29]
[1725785206540,1.3719,129.79,129.76,8.29]
[1725785207046,2.6973,129.78,129.76,8.29]
[1725785207346,1.3757,129.8,129.77,8.29]
[1725785207549,2.6968,129.81,129.78,2.6972]
[1725785207944,2.6968,129.81,129.79,8.29]
[1725785208538,2.6965,129.82,129.79,8.29]
[1725785208743,2.6965,129.82,129.79,10.987]
[1725785209047,5.16809369,129.83,129.79,8.29]
[1725785209448,2.6965,129.82,129.79,10.987]
[1725785211052,2.6965,129.82,129.79,8.29]
[1725785211254,5.16809369,129.83,129.79,8.29]
[1725785212343,2.6964,129.82,129.79,10.9869]
[1725785212543,2.6964,129.82,129.79,8.29]
[1725785215746,2.6966,129.81,129.79,8.29]
[1725785218154,5.16809369,129.83,129.78,3.77359045]
[1725785218347,5.16809369,129.83,129.8,8.29]
[1725785219659,1.3255,129.83,129.8,8.29]
[1725785220561,1.3255,129.83,129.78,3.87570755]
[1725785220759,1.3255,129.83,129.79,8.29]
[1725785221450,5.16661326,129.83,129.79,8.29]
[1725785221850,2.6967,129.81,129.79,8.29]
[1725785223763,5.16661326,129.83,129.78,3.8388012]
[1725785223764,1.3255,129.83,129.78,3.8388012]
[1725785223965,1.3255,129.83,129.81,8.29]
[1725785225359,2.6964,129.82,129.81,8.29]
[1725785226866,2.6966,129.81,129.8,8.29]
[1725785233669,1.3255,129.83,129.8,8.29]
[1725785233869,1.3255,129.83,129.82,8.29]
[1725785235279,4.0217,129.83,129.82,8.29]
[1725785235964,2.6962,129.83,129.82,8.29]
[1725785238272,164.29781532,129.86,129.82,8.29]
[1725785238575,164.29781532,129.86,129.83,8.29]
[1725785238965,2.696,129.84,129.83,8.29]
[1725785240476,164.29781532,129.86,129.83,8.29]
[1725785240477,2.6959,129.85,129.83,8.29]
[1725785240782,2.6959,129.85,129.84,8.29]
[1725785244076,165.72071532,129.86,129.84,8.29]
[1725785244579,163.02511532,129.86,129.84,8.29]
[1725785245074,2.6958,129.85,129.84,8.29]
[1725785247584,165.72081532,129.86,129.84,8.29]
[1725785248179,2.6957,129.86,129.84,8.29]
[1725785249683,24.4532,129.88,129.76,0.2659]
[1725785249876,1.3062,129.87,129.76,4.02685848]
[1725785250077,8.29,129.86,129.76,0.2659]
[1725785250386,2.6965,129.82,129.81,8.29]
[1725785251986,3.81026737,129.85,129.81,8.29]
[1725785252188,32.7362,129.87,129.81,8.29]
[1725785252384,32.7362,129.87,129.8,2.6967]
[1725785252385,2.6964,129.83,129.82,8.29]
[1725785253584,2.6968,129.81,129.79,3.9246794]
[1725785253786,36.5924299,129.87,129.81,8.29]